Cogmind - Beta 16.1 @@@ ROGUE MODE // 2026.02.15 @ 17:02:00 Player: CrispyGuts Result: Destroyed by IE-UA0(R) with Subdweller Machine Gun Performance ------------- Evolutions (0) 0 Regions Visited (2) 400 Robots Destroyed (29) 145 Value Destroyed (609) 609 Prototype IDs (0) 0 Alien Tech Used (0) 0 Bonus (0) 0 TOTAL SCORE: 1154 Bonus ------- None Cogmind --------- Core Integrity 0/250 Matter 93/300 Energy 98/100 System Corruption 0% Temperature Cool (1) Movement Treading (160) Location -10/Subcaves Parts ------- > --- POWER (1) -------- (None) > --- PROPULSION (2) --- Light Treads > --- UTILITY (2) ------ Small Storage Unit Targeting Computer > --- WEAPON (2) ------- (None) > --- INVENTORY (8) ---- Light Ion Engine Aluminum Leg Utility Shielding Scrap Shield Hacking Suite Mining Laser Peak State ------------ > --- POWER ------------ Ion Engine > --- PROPULSION ------- Aluminum Leg Aluminum Leg > --- UTILITY ---------- Small Storage Unit Targeting Computer > --- WEAPON ----------- Subdweller Machine Gun Subdweller Machine Gun > --- INVENTORY -------- Light Ion Engine Light Treads Aluminum Leg Utility Shielding Scrap Shield Hacking Suite Mining Laser [Rating: 10] Favorites ----------- Power Ion Engine Engine Ion Engine Propulsion Aluminum Leg Treads Light Treads Leg Aluminum Leg Utility Small Storage Unit Device Seismic Detector Storage Small Storage Unit Processor Targeting Computer Weapon Assault Rifle Ballistic Gun Assault Rifle Launcher Subdweller Shrapnel Launcher Special Weapon Mining Laser Build | -11 -10 -10 ------- Run | Yrd Mat Sub Slots Evolved . | . . . Power . | . . . Propulsion . | . . . Utility . | . . . Weapon . | . . . Parts Attached 15 | 7 2 6 Power 2 | 1 . 1 Engine 2 | 1 . 1 Core . | . . . Reactor . | . . . Propulsion 4 | 2 1 1 Treads 1 | . . 1 Leg 3 | 2 1 . Wheel . | . . . Hover . | . . . Flight . | . . . Utility 3 | 2 1 . Device 1 | 1 . . Storage 1 | 1 . . Processor 1 | . 1 . Hackware . | . . . Protection . | . . . Artifact . | . . . Weapon 6 | 2 . 4 Energy Gun . | . . . Energy Cannon . | . . . Ballistic Gun 4 | 2 . 2 Ballistic Cannon . | . . . Launcher 1 | . . 1 Special Weapon 1 | . . 1 Impact Weapon . | . . . Slashing Weapon . | . . . Piercing Weapon . | . . . Special Melee Weapon . | . . . Unidentified Prototypes . | . . . Parts Lost 8 | . 1 7 Power 1 | . . 1 Propulsion 2 | . . 2 Utility 1 | . 1 . Weapon 4 | . . 4 Highest Loss Streak 4 | . 1 4 To Critical Strikes . | . . . Average Backups 6 | 3 7 6 Power 1 | 1 2 1 Propulsion 2 | 1 2 2 Utility 1 | . 1 2 Weapon . | . 1 . Tool/Special . | . . . Unused Backups 7 | 1 . 6 Power 1 | . . 1 Propulsion 3 | 1 . 2 Utility 3 | . . 3 Weapon . | . . . Tool/Special . | . . . Average Slot Usage (%) 90 | . 96 88 Engine 12 | . 14 11 Treads 1 | . . 1 Leg 23 | . 28 22 Device 1 | . 4 . Storage 14 | . 14 14 Processor 11 | . 5 14 Ballistic Gun 22 | . 28 19 Launcher 1 | . . 2 Special Weapon 1 | . . 1 Peak Build Rating 10 | 7 8 10 Average Rating 7 | 5 7 8 On Entrance 5 | . 7 8 Avg Prop Armor Cover (%) . | . . . Naked Turns . | . . . Heaviest Build 22 | 14 14 22 Greatest Support 20 | 20 20 20 Greatest Overweight (x) 2 | . . 2 Average Overweight (x) . | . . . Largest Inventory Capacity 8 | 8 8 8 Average Capacity 7 | 7 8 8 Most Carried 8 | 6 8 8 Average Carried 6 | 3 7 7 Final Capacity 8 | 8 8 8 Final Carried 8 | 5 8 7 Class Distribution -------------------- 100% | Mutant Dominant Class ---------------- Mutant | -10/Materials Mutant | -10/Subcaves Resources | -11 -10 -10 ----------- Run | Yrd Mat Sub Matter Collected 748 | 418 123 207 Remotely . | . . . Salvage Created 834 | 251 298 285 Parts 66 | 20 17 29 Haulers Intercepted . | . . . Recyclers Shooed 3 | 1 2 . Parts Field Recycled . | . . . Retrieved Matter . | . . . Parts Self-Destructed 17 | . . 17 Prevented . | . . . Parts Restored . | . . . Kills | -11 -10 -10 ------- Run | Yrd Mat Sub Combat Hostiles Destroyed 15 | . 5 10 Guns 12 | . 5 7 AOE 3 | . . 3 Classes Destroyed 8 | 3 3 2 Worker 1 | 1 . . Tunneler 9 | 9 . . Recycler 3 | 1 2 . Operator 1 | . 1 . Swarmer 3 | . 3 . Grunt 2 | . 2 . Artisan 1 | . . 1 Subdweller 10 | . . 10 Best Kill Streak 4 | 4 4 4 Combat Bots Only 4 | . 3 4 Max Kills in Single Turn 2 | 1 1 2 Gunslinging . | . . . Exploded 2 | . . 2 Melee . | . . . Uniques/NPCs Destroyed . | . . . Combat | -11 -10 -10 -------- Run | Yrd Mat Sub Hostile Shots Fired 106 | . 39 67 Missed 36 | . 14 22 Hits 70 | . 25 45 Projectile 70 | . 25 45 Critical Strikes 2 | . . 2 Damage Taken 1233 | . 287 946 Core 255 | . 6 249 Absorbed by Shields . | . . . Core Remaining (%) 100 | 100 . . Volleys Fired 131 | 37 27 67 Largest 2 | 2 2 2 Hottest 100 | 40 40 100 Shots Fired 214 | 74 54 86 Gun 192 | 74 54 64 Cannon . | . . . Launcher 7 | . . 7 Special 15 | . . 15 Kinetic 199 | 74 54 71 Thermal 15 | . . 15 Explosive . | . . . Electromagnetic . | . . . Robot Hit Streak 12 | 7 12 9 Robot Miss Streak 6 | 6 2 1 Penetration Max . | . . . Secondary Targets . | . . . Shots Hit Robots 131 | 36 40 55 Core Hits 55 | 16 17 22 Critical Kills . | . . . Critical Parts Destroyed 1 | . 1 . Critical Strikes 1 | . 1 . Destroy 1 | . 1 . Melee Attacks . | . . . Impact . | . . . Slashing . | . . . Piercing . | . . . Sneak Attacks . | . . . Combat Hostiles . | . . . Follow-up Attacks . | . . . Damage Inflicted 2199 | 410 392 1397 Guns 1716 | 410 392 914 Cannons . | . . . Explosions 483 | . . 483 Melee . | . . . Ramming . | . . . Kinetic 2199 | 410 392 1397 Thermal . | . . . Explosive . | . . . Electromagnetic . | . . . Impact . | . . . Slashing . | . . . Piercing . | . . . Highest Corruption . | . . . Average Corruption . | . . . Corruption Purged . | . . . Corruption Blocked . | . . . Overload Shots . | . . . Overflow Damage . | . . . Projectiles . | . . . Explosions . | . . . Melee . | . . . Knockbacks . | . . . Impact . | . . . Kinetic . | . . . Secondary . | . . . Self-Inflicted Damage . | . . . Shots . | . . . Rammed . | . . . Targets Rammed . | . . . Kicked . | . . . Crushed . | . . . Highest Temperature 30 | . 30 . Average Temperature 14 | . 14 . Received Heat Transfer 288 | . 132 156 Siege Activations . | . . . Martial Activations . | . . . Shielding Activations . | . . . Robots Disrupted . | . . . Combat Hostiles . | . . . Robots Corrupted . | . . . Combat Hostiles . | . . . Parts Fried . | . . . Impact Corruptions . | . . . Robots Melted . | . . . Combat Hostiles . | . . . Parts Melted 1 | . . 1 Heat Transferred . | . . . Parts Sabotaged . | . . . Parts Stolen . | . . . Parts Stripped . | . . . Power Chain Reactions . | . . . Alert | -11 -10 -10 ------- Run | Yrd Mat Sub Maximum Alert Level . | . . . Low Security (%) 100 | 100 100 . Level 1 . | . . . Level 2 . | . . . Level 3 . | . . . Level 4 . | . . . Level 5 . | . . . High Security . | . . . Max Security . | . . . Peak Influence 65 | 10 65 . Initial . | . . . Average 10 | 1 19 . Influence Increases 195 | 55 140 . Destroy 0b10 Robot/C 100 | . 100 . Destroy 0b10 Robot/NC 70 | 55 15 . Destroy Leader 20 | . 20 . Successful Hack 5 | . 5 . Influence Decreases 195 | 55 105 35 Entered New Map 18 | . . 18 Time Decay 177 | 55 105 17 Squads Dispatched . | . . . Investigation . | . . . Extermination . | . . . Reinforcement . | . . . Assault . | . . . Garrison . | . . . Intercept . | . . . Searches Triggered . | . . . Construction Impeded . | . . . Haulers Reinforced . | . . . Active Scanning Responses . | . . . Cargo Convoy Interrupts . | . . . Stealth | -11 -10 -10 --------- Run | Yrd Mat Sub Distress Signals . | . . . Communications Jammed . | . . . Distress Signals . | . . . Times Spotted 23 | . 10 13 Peak Tracking Total 3 | . 3 3 Tactical Retreats . | . . . Traps | -11 -10 -10 ------- Run | Yrd Mat Sub Traps Triggered . | . . . Indirectly . | . . . Trap Hack Attempts . | . . . Triggered . | . . . Disarmed . | . . . Reprogrammed . | . . . Reused . | . . . Traps Extracted . | . . . Installed . | . . . Triggered . | . . . Machines | -11 -10 -10 ---------- Run | Yrd Mat Sub Machines Disabled . | . . . Max in Single Turn . | . . . Machines Repaired . | . . . Machines Dismantled . | . . . Machines Sabotaged . | . . . Overloaded Fab Kills . | . . . Hacking | -11 -10 -10 --------- Run | Yrd Mat Sub Machines Accessed 1 | . 1 . Terminals 1 | . 1 . Fabricators . | . . . Repair Stations . | . . . Recycling Units . | . . . Scanalyzers . | . . . Garrison Access . | . . . Total Hacks 3 | . 3 . Successful 1 | . 1 . Failed 2 | . 2 . Catastrophic . | . . . Database Lockouts . | . . . Manual 3 | . 3 . Terminals 3 | . 3 . Fabricators . | . . . Repair Stations . | . . . Recycling Units . | . . . Scanalyzers . | . . . Garrison Access . | . . . Terminal Hacks . | . . . Fabricator Hacks . | . . . Repair Station Hacks . | . . . Recycling Unit Hacks . | . . . Scanalyzer . | . . . Garrison Access Hacks . | . . . Unauthorized Hacks 1 | . 1 . Terminals 1 | . 1 . Botnet 1 | . 1 . Fabricators . | . . . Repair Stations . | . . . Recycling Units . | . . . Scanalyzers . | . . . Garrison Access . | . . . Data Cores Recovered 1 | . 1 . Used . | . . . Hacking Detections 1 | . 1 . Full Trace Events . | . . . Feedback Events . | . . . Feedback Blocked . | . . . Robot Schematics Acquired . | . . . Robots Built . | . . . Authchips . | . . . Time . | . . . Total Robot Build Rating . | . . . Part Schematics Acquired . | . . . Parts Built . | . . . Authchips . | . . . Time . | . . . Total Part Build Rating . | . . . Part Studies Acquired . | . . . Parts Repaired . | . . . Time . | . . . Parts Recycled . | . . . Recycled Matter . | . . . Retrieved Matter . | . . . Retrieved Components . | . . . Parts Scanalyzed . | . . . Part Schematics Acquired . | . . . Parts Damaged . | . . . Bothacking | -11 -10 -10 ------------ Run | Yrd Mat Sub Used RIF Installer . | . . . Robots Hacked . | . . . Non-combat . | . . . Combat . | . . . Robot Hacks Applied . | . . . Relay Couplers Released . | . . . Fabnet Peak Effective % . | . . . Robots Rewired . | . . . Allies Hacked . | . . . Hacks Repelled . | . . . Allies | -11 -10 -10 -------- Run | Yrd Mat Sub Total Allies . | . . . Largest Group . | . . . Highest-Rated Group . | . . . Highest-Rated Ally . | . . . Total Orders . | . . . Ally Attacks . | . . . Total Damage . | . . . Kills . | . . . Allies Corrupted . | . . . Allies Melted . | . . . Intel | -11 -10 -10 ------- Run | Yrd Mat Sub Active Infowar (turns) 164 | 67 97 . Seismic 164 | 67 97 . Robot Analysis Total . | . . . Derelict Logs Recovered . | . . . Drone Launches . | . . . Drone Recoveries . | . . . Exploration | -11 -10 -10 ------------- Run | Yrd Mat Sub Turns Passed 1482 | 315 311 856 Spaces Moved 754 | 163 186 405 Core 51 | 4 . 47 Treads 44 | . . 44 Legs 659 | 159 186 314 Wheels . | . . . Hover . | . . . Flight . | . . . Fastest Speed 50 | 50 120 100 Average Speed 127 | 118 120 134 Slowest Speed 190 | 120 120 190 Overloaded Moves . | . . . Propulsion Burnouts . | . . . Robots Hopped . | . . . Potential Cave-ins . | . . . Cave-ins Triggered . | . . . Exploration Rate (%) 21 | 6 31 26 Regions Visited 2 Branch Regions 1 Pre-discovered Areas . | . . . Known Exits Taken . | . . . Unknown Exits Taken 2 | 1 1 . Scrap Searched 1 | . . 1 Spaces Dug . | . . . Terrain Destroyed 73 | . . 73 Melee . | . . . Projectile 1 | . . 1 AOE 72 | . . 72 Terrain Rammed . | . . . Walls Destroyed . | . . . Machines Disabled . | . . . Actions | -11 -10 -10 --------- Run | Yrd Mat Sub Total 1037 | 217 225 595 Wait 108 | . 7 101 Move 752 | 162 185 405 Hop . | . . . Pick Up 15 | 10 3 2 Fast Attach 6 | 3 1 2 Attach 6 | 4 . 2 Detach . | . . . Swap 13 | . 1 12 Drop 6 | 1 1 4 Fire 131 | 37 27 67 Melee . | . . . Ram . | . . . Kick . | . . . Crush . | . . . Escape Stasis . | . . . Rewire . | . . . Trap . | . . . Miscellaneous . | . . . Route ------- -11/Scrapyard -10/Materials (discovered 2 exits: [*Mat] / [*Sub]) -10/Subcaves (discovered 1 exit: [*Mat]) History --------- Turn | Location | Event 5 | -11/Scrapyard | Discovered new exit (range 16) 316 | -11/Scrapyard | Entered Materials 317 | -10/Materials | Build established: Mutant 514 | -10/Materials | Discovered new exit (range 6) 610 | -10/Materials | Discovered new exit (range 13) 627 | -10/Materials | Entered Subcaves 628 | -10/Subcaves | Approached by a straggling Scientist 684 | -10/Subcaves | A swath of the cavern ceiling suddenly collapsed 715 | -10/Subcaves | Shifting Twisted Machinery released Scrap Shield 728 | -10/Subcaves | Shifting Twisted Machinery released Sub. Machine Gun 731 | -10/Subcaves | Shifting Twisted Machinery released Mak. Flight Unit 868 | -10/Subcaves | Discovered new exit (range 7) 1095 | -10/Subcaves | Disturbed a concealed Subdweller 1261 | -10/Subcaves | Ambushed by Subdweller buried in earth 1348 | -10/Subcaves | Lost 4 parts (1p2n1w) 1434 | -10/Subcaves | Core integrity fell below 50% 1449 | -10/Subcaves | Core integrity fell below 20% 1483 | -10/Subcaves | Destroyed by IE-UA0(R) with Subdweller Machine Gun Last Messages --------------- 01259_ MH-RJ5(R): "ARGHSUB!" 01262_ KZ-69K(R): "ARGHSUB!" 01264_ ZM-DQQ(R) destroyed. 01264_ MH-RJ5(R) destroyed. 01267_ KZ-69K(R) destroyed. 01285_ Sub. Shrapnel Launcher destroyed. 01301_ UL-KG0(R) destroyed. 01303_ Aluminum Leg destroyed. 01313_ Ion Engine destroyed. 01317_ Aluminum Leg destroyed. 01327_ 30-W6C(R) destroyed. 01346_ Subatomizers dissect the Sub. Optics. 01357_ Acquired 14 matter. 01359_ Subatomizers dissect the Disposable Heat Sink. 01359_ Sub. Machine Gun destroyed. 01386_ Acquired Assault Rifle. 01429_ 3L-54K(R) destroyed. 01430_ IE-UA0(R) affixes Scrap Shield Fragment to Scrap Shield. 01442_ Assault Rifle destroyed. 01445_ IE-UA0(R) affixes Scrap Shield Fragment to Scrap Shield. Map ----- +----------------------------------------------------+ | ?????????????????????????????????????????????????? | | ?????????????????????????????????????????????????? | | ?????????????????????????????????????????????????? | | ????????????????????????????????????????????##???? | | ???????????????????????????????????????????## #### | | ???????????????????????????? ??????????????####""# | | ??????????????????????????? ???????????#?###"#"" | | ?????????????????????????? ???????????##"##""##"# | | ????????????????????????? #????????????""#""#""## | | ??????????????????####???" #??"???????##?#"##""### | | ??????????????????# ??#""##""???????# "?#"#"##"# | | ??????????????????# ?? "" ????##??## ###"#""#? | | ??????????????????# ## ?????## ??# # "###? | | ??????????????????# #???" ?" ?????#" ##"#?? | | ??????????????????# #??""" " "#???## =#?##?? | | ??????????????????## ##??"" " "#######*####?? | | ???????????????????### #???# " """"## #" #?? | | ?????????????????????# #????? " """""""""" #?? | | ????????????????????## #??????#""""" """"" ##?? | | ????????????????????# #???????#""""# " " ##??? | | ????????????????????## #?####?##"" "#"##" ##??? | | ????????????????????## ### "###""= """" "##?? | | ???????????????????## "" ""##""" ## ""[ "" ##? | | ???????????????????# <""""### " "####" """ #? | | ???????????????????## """##* " ####""""" #? | | ????????????????????## @ R ####"#######? | | ?????????????????????### """ =## ######?##??? | | ???????????????????????## """ ## ! ! # ## #??? | | ????????????????????????## "" ### =" #???? | | ?????????????????????????####"##?# ### # ##??? | | ????????????????????????????###??# #?##### #??? | | ?????????????????????????????????## #????## ^##?? | | ??????????????????????????????????###????# #?? | | ?????????????????????????????????????????## ##? | | ??????????????????????????????????????????# ^ #? | | ??????????????????????????????????????????# ## | | ?????????????????????????????????????????## # | | ?????????????????????????????????????????# | | ?????????????????????????????????????????# = | | ?????????????????????????????????????????##### # | | ?????????????????????????????????????????????##### | | ?????????????????????????????????????????????????? | | ?????????????????????????????????????????????????? | | ???????????????????????????????#######???????????? | | ???????????????????????????????#"&& "#?????#?????? | | ???????????????????????????????#&##&*#?????# ????? | | ???????????????????????????????#=!####?????# ####? | | ???????????????????????????????##&"###??????" ## | | ???????????????????????????????##&## #??????## ## | | ???????????????????????????????#" " ########" " | +----------------------------------------------------+ Best States ------------- Heat Dissipation 25 Energy Generation 10 Energy Capacity 250 Matter Stores 300 Matter Capacity 300 Sight Range 16 Terrain Scan Density 10 Evasion (%) 55 Targeting Accuracy 5 Recoil Reduction 1 Item Schematics ----------------- None Robot Schematics ------------------ None Fabricated ------------ Nothing Repaired ---------- Nothing Studied --------- None Alien Tech Used ----------------- None Achievements -------------- None Challenges ------------ None Game ------ Seed ScanBoltCorpse Manual? 0 Play Time 00:16:46 Cumulative 137.4 hours Start 2026.02.15 @ 16:48:45 End 2026.02.15 @ 17:02:00 Sessions 1 Manual Loads 0 Difficulty Rogue Special Mode None Game No. 67 Rogue 6 Adventurer 61 Explorer 0 Win Type - Total 2 Types 1/0/0/0/0/0/0/0/0/1 Lore% 61 Gallery% 54 Achievement% 44 Wizard Run 0 Options --------- Layout 0 ASCII 0 Keyboard 0 Movement Mouse Keybinds 0 Fullscreen 2 Font 24/Smallcaps Map View 76x50 Zoom Use 0% Tactical HUD 1 Map Filters NONE Filters NONE Steam 1 RUN: 5934c031-a0b9-40a6-85a4-cfaf207c8b85